fUSD/lending_fUSD_20250208
["ID","MTS","AMOUNT","RATE_DAILY","PERIOD"]
[352192450,1738987832748,-985.06,0.00011293,2]
[352192451,1738987832757,-985.06,0.00011293,2]
[352192452,1738987832766,-1452.43,0.00011293,2]
[352192453,1738987832776,-1969.78,0.00011293,2]
[352192454,1738987832786,-427.71070138,0.00011299,2]
[352192455,1738987832795,-150.0,0.00011314,2]
[352192456,1738987832804,-234.39,0.00011356,2]
[352192457,1738987832815,-291.95,0.00011382,2]
[352192458,1738987832824,-427.71070138,0.00011399,2]
[352192459,1738987832833,-150.0,0.000114,2]
[352192460,1738987832842,-157.372,0.00011466,2]
[352192461,1738987832852,-160.677,0.00011466,2]
[352192462,1738987832862,-242.373,0.00011466,2]
[352192463,1738987832872,-1272.0,0.00011466,2]
[352192464,1738987832881,-2024.0,0.00011466,2]
[352192465,1738987832891,-638.0,0.00011466,2]
[352192466,1738987832900,-150.0,0.00011466,2]
[352192467,1738987832909,-568.0,0.00011466,2]
[352192468,1738987832918,-1827.0,0.00011466,2]
[352192469,1738987832928,-2954.0,0.00011466,2]
[352192470,1738987832937,-783.0,0.00011466,2]
[352192471,1738987832946,-1264.0,0.00011466,2]
[352192472,1738987832955,-907.0,0.00011466,2]
[352192473,1738987832964,-151.0,0.00011479,2]
[352192474,1738987832974,-150.0,0.00011486,2]
[352192475,1738987832983,-179.037784,0.00011499,2]
[352192476,1738987832992,-179.037784,0.00011499,2]
[352192477,1738987833001,-427.71070138,0.000115,2]
[352192478,1738987833011,-303.46043299,0.00011519,2]
[352192479,1738987833020,-1610.83590367,0.0001152,2]
[352192480,1738987833029,-30654.36036257,0.0001152,2]
[352192481,1738987833039,-8133.18646902,0.00011521,2]
[352192482,1738987833048,-17487.66483691,0.00011521,2]
[352192483,1738987833058,-200.0,0.00011524,2]
[352192484,1738987833067,-17487.66483691,0.00011525,2]
[352192485,1738987833077,-1230.98365921,0.00011525,2]
[352192486,1738987833086,-1193.92414275,0.00011525,2]
[352192487,1738987833096,-6925.60507499,0.00011526,2]
[352192488,1738987833105,-1334.0995323,0.00011527,2]
[352192489,1738987833115,-357.24486939,0.00011528,2]
[352192490,1738987833125,-85589.05079848,0.0001153,2]
[352192553,1738987833885,-324.92886602,0.0001153,2]
[352192555,1738987833896,-7858.54724254,0.0001153,2]
[352192558,1738987833914,-842.89189044,0.0001153,2]
[352192560,1738987833925,-37279.78771226,0.0001153,2]
[352192562,1738987833934,-331.37,0.0001153,2]
[352192564,1738987833943,-2461.96731842,0.0001153,2]
[352192566,1738987833952,-200.0,0.00011531,2]
[352192568,1738987833962,-786.56930788,0.00011532,2]
[352192570,1738987833971,-1666.82869247,0.00011533,2]
[352192572,1738987833981,-4793.82357207,0.00011533,2]
[352192574,1738987833991,-200.0,0.00011534,2]
[352192576,1738987834000,-6925.60507499,0.00011536,2]
[352192578,1738987834009,-200.0,0.00011537,2]
[352192580,1738987834018,-200.0,0.00011537,2]
[352192582,1738987834028,-333.2771722,0.00011537,2]
[352192583,1738987834037,-2528.02367506,0.00011538,2]
[352192585,1738987834047,-30654.36036257,0.00011538,2]
[352192587,1738987834056,-1334.0995323,0.0001154,2]
[352192589,1738987834066,-2528.02367506,0.00011541,2]
[352192591,1738987834076,-11912.87590976,0.00011541,2]
[352192593,1738987834088,-200.0,0.00011541,2]
[352192595,1738987834101,-2461.96731842,0.00011541,2]
[352192597,1738987834111,-131895.20650974,0.00011542,2]
[352192599,1738987834120,-2528.02367506,0.00011544,2]
[352192601,1738987834129,-241.00746055,0.00011544,2]
[352192603,1738987834138,-1230.98365922,0.00011545,2]
[352192605,1738987834147,-11912.87590976,0.00011545,2]
[352192607,1738987834156,-1203.39831964,0.00011546,2]
[352192609,1738987834166,-200.0,0.00011547,2]
[352192611,1738987834175,-200.0,0.00011548,2]
[352192613,1738987834185,-4793.82357207,0.00011548,2]
[352192615,1738987834194,-131895.20650974,0.00011549,2]
[352192617,1738987834203,-1198.45589302,0.00011549,2]
[352192619,1738987834212,-33041.36250175,0.00011549,2]
[352192621,1738987834222,-200.0,0.0001155,2]
[352192623,1738987834232,-1193.92414275,0.0001155,2]
[352192625,1738987834242,-330.082145,0.0001155,2]
[352192627,1738987834251,-8133.18646902,0.0001155,2]
[352192629,1738987834262,-11912.87590976,0.00011551,2]
[352192631,1738987834271,-303.46043299,0.00011551,2]
[352192633,1738987834282,-1198.45589302,0.00011553,2]
[352192635,1738987834291,-357.24486939,0.00011555,2]
[352192637,1738987834300,-33041.36250175,0.00011556,2]
[352192639,1738987834310,-8993.55457892,0.00011556,2]
[352192641,1738987834320,-409.08598314,0.00011556,2]
[352192643,1738987834329,-200.0,0.00011556,2]
[352192645,1738987834338,-8133.18646902,0.00011557,2]
[352192647,1738987834347,-223.02238166,0.00011557,2]
[352192649,1738987834357,-131895.20650974,0.00011557,2]
[352192651,1738987834367,-5963.68616186,0.00011557,2]
[352192653,1738987834376,-4793.82357207,0.00011559,2]
[352192655,1738987834386,-357.24486939,0.00011559,2]
[352192656,1738987834396,-1193.92414275,0.00011559,2]
[352192659,1738987834408,-1230.98365921,0.00011559,2]
[352192661,1738987834420,-1230.98365922,0.00011561,2]
[352192663,1738987834431,-8993.55457892,0.00011561,2]
[352192665,1738987834440,-1334.0995323,0.00011561,2]
[352192667,1738987834451,-11912.87590976,0.00011561,2]
[352192669,1738987834460,-1334.0995323,0.00011565,2]
[352192671,1738987834469,-2461.96731842,0.00011565,2]
[352192673,1738987834479,-1193.92414275,0.00011565,2]
[352192675,1738987834488,-241.00746055,0.00011566,2]
[352192677,1738987834497,-328.6503853,0.00011566,2]
[352192678,1738987834507,-1230.98365922,0.00011566,2]
[352192679,1738987834517,-6925.60507499,0.00011566,2]
[352192680,1738987834527,-330.082145,0.00011566,2]
[352192681,1738987834537,-223.02238166,0.00011566,2]
[352192682,1738987834548,-409.08598314,0.00011566,2]
[352192683,1738987834558,-786.56930788,0.00011567,2]
[352192684,1738987834568,-1203.39831964,0.00011567,2]
[352192685,1738987834578,-1203.39831964,0.00011568,2]
[352192686,1738987834588,-786.56930788,0.00011568,2]
[352192687,1738987834597,-1198.45589302,0.00011569,2]
[352192688,1738987834607,-303.46043299,0.00011569,2]
[352192689,1738987834617,-303.46043299,0.0001157,2]
[352192690,1738987834626,-333.2771722,0.00011571,2]
[352192691,1738987834636,-328.6503853,0.00011574,2]
[352192692,1738987834646,-241.00746055,0.00011574,2]
[352192693,1738987834656,-1666.82869247,0.00011575,2]
[352192694,1738987834666,-200.0,0.00011576,2]
[352192695,1738987834675,-17487.66483691,0.00011577,2]
[352192697,1738987834685,-200.0,0.00011577,2]
[352192699,1738987834694,-1666.82869247,0.00011577,2]
[352192701,1738987834708,-1230.98365921,0.00011577,2]
[352192703,1738987834718,-8133.18646902,0.00011578,2]
[352192704,1738987834727,-30654.36036257,0.00011579,2]
[352192705,1738987834737,-2461.96731842,0.00011579,2]
[352192707,1738987834747,-1203.39831964,0.00011579,2]
[352192710,1738987834757,-30654.36036257,0.0001158,2]
[352192711,1738987834766,-8993.55457892,0.0001158,2]
[352192713,1738987834776,-333.2771722,0.00011582,2]
[352192715,1738987834787,-200.0,0.00011582,2]
[352192718,1738987834797,-200.0,0.00011583,2]
[352192720,1738987834806,-333.2771722,0.00011583,2]
[352192722,1738987834816,-1230.98365922,0.00011583,2]
[352192724,1738987834826,-4793.82357207,0.00011584,2]
[352192725,1738987834835,-17487.66483691,0.00011584,2]
[352192727,1738987834845,-200.0,0.00011584,2]
[352192730,1738987834854,-328.6503853,0.00011585,2]
[352192732,1738987834864,-786.56930788,0.00011585,2]
[352192734,1738987834874,-5963.68616186,0.00011585,2]
[352192736,1738987834884,-1610.83590367,0.00011585,2]
[352192738,1738987834893,-33041.36250175,0.00011586,2]
[352192740,1738987834903,-223.02238166,0.00011586,2]
[352192742,1738987834913,-200.0,0.00011586,2]
[352192744,1738987834923,-409.08598314,0.00011586,2]
[352192746,1738987834933,-200.0,0.00011587,2]
[352192748,1738987834943,-409.08598314,0.00011588,2]
[352192750,1738987834953,-330.082145,0.00011588,2]
[352192752,1738987834963,-328.6503853,0.00011588,2]
[352192754,1738987834975,-1610.83590367,0.0001159,2]
[352192756,1738987834984,-330.082145,0.0001159,2]
[352192758,1738987834994,-200.0,0.00011591,2]
[352192760,1738987835005,-8993.55457892,0.00011591,2]
[352192762,1738987835014,-5963.68616186,0.00011591,2]
[352192764,1738987835023,-1230.98365921,0.00011591,2]
[352192766,1738987835032,-223.02238166,0.00011591,2]
[352192768,1738987835041,-1610.83590367,0.00011591,2]
[352192770,1738987835051,-6925.60507499,0.00011591,2]
[352192772,1738987835059,-241.00746055,0.00011591,2]
[352192774,1738987835069,-430.98070684,0.00011593,2]
[352192776,1738987835082,-649.61423382,0.00011593,2]
[352192779,1738987835094,-1447.4287344,0.00011593,2]
[352192781,1738987835103,-5049.7599188,0.00011594,2]
[352192785,1738987835135,-958.32356066,0.00011594,2]
[352192787,1738987835146,-6993.22392713,0.00011594,2]
[352192789,1738987835157,-803.28453,0.00011594,2]
[352192792,1738987835168,-520.41993916,0.00011594,2]
[352192794,1738987835179,-18716.350626,0.00011594,2]
[352192796,1738987835189,-200.0,0.00011594,2]
[352192798,1738987835198,-1198.45589302,0.00011595,2]
[352192800,1738987835207,-200.0,0.00011595,2]
[352192802,1738987835216,-1666.82869247,0.00011595,2]
[352192804,1738987835225,-5963.68616186,0.00011595,2]
[352192806,1738987835234,-135.64515536,0.00011596,2]
[352192808,1738987835246,-64.35484464,0.00011596,2]
[352192810,1738987835255,-357.24486939,0.00011597,2]
[352192812,1738987835264,-200.0,0.00011597,2]
[352192814,1738987835273,-200.0,0.00011598,2]
[352192816,1738987835283,-427.71070138,0.000116,2]
[352192818,1738987835293,-200.0,0.000116,2]
[352192820,1738987835302,-150.0,0.00011657,2]
[352192822,1738987835311,-427.71070138,0.000117,2]
[352192824,1738987835321,-3011.282,0.00011739,2]
[352192826,1738987835331,-152.100151,0.0001178,2]
[352192828,1738987835340,-184.312075,0.0001178,2]
[352192830,1738987835349,-500.0,0.0001178,2]
[352192832,1738987835358,-500.0,0.0001178,2]
[352192834,1738987835367,-3100.0,0.0001178,2]
[352192836,1738987835377,-1019.70006975,0.0001179,2]
[352192838,1738987835386,-427.71070138,0.000118,2]
[352192840,1738987835395,-702.88175213,0.0001182,2]
[352192842,1738987835404,-150.0,0.00011829,2]
[352192844,1738987835413,-427.71070138,0.000119,2]
[352192846,1738987835422,-197.04035443,0.000119,2]
[352192848,1738987835432,-862.5894622,0.000119,2]
[352192850,1738987835441,-184.312075,0.00011913,2]
[352192852,1738987835450,-598.17608522,0.00011973,2]
[352192854,1738987835459,-5543.46002634,0.00011996,2]
[352192856,1738987835471,-646.9888024,0.00011996,2]
[352192858,1738987835482,-2595.3150386,0.00011996,2]
[352192861,1738987835503,-1677.34175643,0.00011996,2]
[352192864,1738987835514,-2911.52205608,0.00011996,2]
[352192866,1738987835526,-506.2465509,0.00011996,2]
[352192928,1738987838130,-6596.03655,0.00011996,2]
[352192929,1738987838142,-3511.95,0.00011996,2]
[352192930,1738987838243,-8749.44770489,0.00011996,2]
[352192931,1738987838254,-475.24223701,0.00011996,2]
[352192932,1738987838265,-2938.16336706,0.00011996,2]
[352192933,1738987838275,-29803.23913303,0.00011997,2]
[352192934,1738987838284,-151.0,0.00011997,2]
[352192935,1738987838293,-179.037784,0.00011997,2]
[352192936,1738987838302,-179.037784,0.00011997,2]
[352192937,1738987838311,-184.312075,0.00011998,2]
[352192938,1738987838322,-1732.0,0.00011999,2]
[352192939,1738987838331,-306660.76944909,0.00011999,3]
[352192940,1738987838351,-8351.96028301,0.00011999,3]
[352192941,1738987838362,-22179.25046235,0.00011999,3]
[352192942,1738987838460,-8612.0846424,0.00011999,3]
[352192943,1738987838471,-839.93189631,0.00011999,3]
[352192944,1738987838482,-1003.64839968,0.00011999,3]
[352192953,1738987838608,-355.17091682,0.00011999,3]
[352192955,1738987838620,-1203.88782761,0.00011999,3]
[352193052,1738987840227,-141.7720201,0.00011999,3]
[352193053,1738987840290,-1190.52272302,0.00011999,3]
[352193162,1738987843442,-262.44822189,0.00011999,3]
[352193163,1738987843454,-10495.9304846,0.00011999,3]
[352193293,1738989032418,-343.90650373,8.973e-05,2]
[352193294,1738989032430,-250.22877249,8.973e-05,2]
[352193295,1738989032442,-1024.51742378,8.973e-05,2]
[352193296,1738989032451,-712.97,9.04e-05,2]
[352193297,1738989032460,-469.49,0.00010137,2]
[352193298,1738989032469,-175.79,0.00010518,2]
[352193299,1738989032479,-500.0,0.00010553,2]
[352193300,1738989032489,-150.0,0.000108,2]
[352193301,1738989032499,-150.0,0.000108,2]
[352193302,1738989032508,-150.0,0.000108,2]
[352193303,1738989032517,-238.0,0.0001085,2]
[352193304,1738989032527,-150.0,0.00010875,2]
[352193305,1738989032536,-250.0,0.00010899,2]
[352193306,1738989032545,-150.0,0.0001095,2]
[352193307,1738989032555,-1000.0,0.00010979,2]
[352193308,1738989032564,-163.51,0.00010984,2]
[352193309,1738989032574,-1659.27989822,0.00011012,2]
[352193310,1738989032586,-17366.09010178,0.00011012,2]
[352193311,1738989032596,-150.0,0.00011025,2]
[352193312,1738989032605,-175.17,0.0001103,2]
[352193313,1738989032614,-156.665263,0.0001103,2]
[352193314,1738989032624,-156.665263,0.0001103,2]
[352193315,1738989032634,-150.0,0.000111,2]
[352193316,1738989032643,-150.0,0.00011175,2]
[352193317,1738989032653,-150.0,0.0001125,2]
[352193318,1738989032662,-1324.78,0.00011281,2]
[352193319,1738989032671,-150.99,0.00011281,2]
[352193320,1738989032680,-7914.41498846,0.00011281,2]
[352193321,1738989032692,-2085.57501154,0.00011281,2]
[352193322,1738989032701,-299.99,0.00011281,2]
[352193323,1738989032710,-6606.97,0.00011281,2]
[352193324,1738989032719,-2066.37,0.00011281,2]
[352193325,1738989032728,-7775.23,0.00011281,2]
[352193326,1738989032738,-150.99,0.00011281,2]
[352193327,1738989032748,-712.97,0.00011304,2]
[352193328,1738989032757,-150.0,0.00011325,2]
[352193329,1738989032766,-238.0,0.0001133,2]
[352193330,1738989032776,-216.113,0.0001133,2]
[352193332,1738989032786,-150.0,0.000114,2]
[352193334,1738989032795,-150.0,0.000114,2]
[352193336,1738989032804,-3570.79944496,0.000114,5]
[352193338,1738989032816,-726.20055504,0.000114,5]
[352193340,1738989032825,-638.0,0.00011433,2]
[352193341,1738989032835,-568.0,0.00011433,2]
[352193342,1738989032844,-783.0,0.00011433,2]
[352193344,1738989032854,-320.248,0.00011433,2]
[352193346,1738989032863,-1613.05144495,0.00011433,2]
[352193348,1738989032875,-344.40721085,0.00011433,2]
[352193350,1738989032909,-774.09765719,0.00011433,2]
[352193352,1738989032920,-1049.05504559,0.00011433,2]
[352193354,1738989032931,-243.38864142,0.00011433,2]
[352193356,1738989032940,-3105.1973948,0.00011433,2]
[352193359,1738989032960,-806.8026052,0.00011433,2]
[352193361,1738989032970,-1272.0,0.00011433,2]
[352193362,1738989032989,-639.0,0.00011433,2]
[352193363,1738989033000,-150.0,0.00011433,2]
[352193364,1738989033009,-150.0,0.00011475,2]
[352193366,1738989033018,-156.665263,0.00011499,2]
[352193367,1738989033028,-156.665263,0.00011499,2]
[352193369,1738989033037,-95111.63591859,0.00011521,2]
[352193372,1738989033047,-200.0,0.00011524,2]
[352193373,1738989033057,-21575.9276125,0.00011526,2]
[352193376,1738989033068,-3937.52151847,0.00011534,2]
[352193378,1738989033078,-4849.82415415,0.00011537,2]
[352193379,1738989033088,-200.0,0.00011543,2]
[352193381,1738989033098,-4849.82415415,0.00011545,2]
[352193383,1738989033107,-21575.9276125,0.00011549,2]
[352193385,1738989033117,-150.0,0.0001155,2]
[352193387,1738989033130,-200.0,0.00011561,2]
[352193389,1738989033139,-200.0,0.00011561,2]
[352193391,1738989033150,-3937.52151847,0.00011562,2]
[352193393,1738989033159,-4849.82415415,0.00011565,2]
[352193395,1738989033168,-3937.52151847,0.00011566,2]
[352193397,1738989033178,-95111.63591859,0.00011566,2]
[352193399,1738989033188,-3937.52151847,0.00011567,2]
[352193401,1738989033197,-4849.82415415,0.00011568,2]
[352193403,1738989033207,-95111.63591859,0.00011576,2]
[352193405,1738989033217,-21575.9276125,0.00011577,2]
[352193407,1738989033226,-2409.025,0.00011592,2]
[352193409,1738989033236,-21575.9276125,0.00011596,2]
[352193411,1738989033246,-51248.78446418,0.00011599,2]
[352193413,1738989033258,-626.0,0.00011599,2]
[352193416,1738989033277,-287.83754999,0.00011599,2]
[352193426,1738989038263,-454.16,0.00011433,2]
[352193427,1738989038272,-486.20664087,0.00011599,2]
[352193428,1738989038381,-42462.80726355,0.00011599,2]
[352193429,1738989038390,-150.0,0.00011625,2]
[352193430,1738989038400,-150.0,0.000117,2]
[352193431,1738989038409,-150.0,0.00011775,2]
[352193432,1738989038419,-238.0,0.0001181,2]
[352193433,1738989038428,-1136.29,0.00011839,2]
[352193434,1738989038437,-150.0,0.0001185,2]
[352193435,1738989038446,-279.0,0.000119,2]
[352193436,1738989038455,-197.04035442,0.000119,2]
[352193437,1738989038465,-500.0,0.00011903,2]
[352193438,1738989038474,-200.0,0.00011903,2]
[352193439,1738989038483,-150.0,0.00011925,2]
[352193440,1738989038492,-6010.17097456,0.00011965,2]
[352193441,1738989038502,-595.6527511,0.00011989,2]
[352193442,1738989038511,-6744.4160315,0.00011989,2]
[352193443,1738989038520,-5480.3698715,0.00011989,2]
[352193444,1738989038529,-7185.540443,0.00011989,2]
[352193445,1738989038538,-104933.11913862,0.00011997,3]
[352193447,1738989038571,-450.95372915,0.00011997,3]
[352193448,1738989038582,-5200.0,0.00011997,3]
[352193649,1738989040553,-397.255,0.00011997,3]
[352193651,1738989040566,-6400.80293767,0.00011997,3]
[352193658,1738989040616,-803.98166143,0.00011997,3]
[352193672,1738989040745,-519.20355544,0.00011997,3]
[352193675,1738989040757,-30637.35792431,0.00011997,3]
[352193915,1738989043365,-483.92592,0.00011433,2]
[352193917,1738989043376,-371.41308,0.00011433,2]
[352193919,1738989043386,-133.65788589,0.00011997,3]
[352193928,1738989043478,-619.819988,0.00011997,3]
[352193935,1738989043550,-5905.0720505,0.00011997,3]
[352193937,1738989043562,-299.9126115,0.00011997,3]
[352193943,1738989043625,-1618.6527,0.00011997,3]
[352193945,1738989043645,-2700.0,0.00011997,3]
[352194213,1738989046559,-467.0,0.000118,2]
[352194215,1738989046569,-6483.2881696,0.00011997,3]
[352194227,1738989046673,-4930.30487223,0.00011997,3]
[352194237,1738989046755,-17257.326996,0.00011997,3]
[352194880,1738990231521,-641.67,9.106e-05,2]
[352194881,1738990231531,-500.0,0.00010016,2]
[352194882,1738990231540,-152.19,0.00010137,2]
[352194883,1738990231551,-2725.34,0.000108,2]
[352194884,1738990231632,-1852.14633137,0.000108,2]
[352194885,1738990231641,-150.0,0.000108,2]
[352194886,1738990231651,-150.0,0.000108,2]
[352194887,1738990231660,-172.66327184,0.000108,2]
[352194888,1738990231669,-175.17,0.00011012,2]
[352194889,1738990231679,-250.0,0.00011019,2]
[352194890,1738990231688,-1000.0,0.00011034,2]
[352194891,1738990231699,-296.0,0.00011288,2]
[352194892,1738990231709,-641.67,0.0001137,2]
[352194893,1738990231720,-150.0,0.00011631,2]
[352194894,1738990231728,-476.58,0.00011631,2]
[352194895,1738990231737,-999.99,0.00011631,2]
[352194896,1738990231747,-1272.0,0.00011632,2]
[352194897,1738990231758,-492.256,0.00011632,2]
[352194898,1738990231767,-783.0,0.00011632,2]
[352194899,1738990231776,-539.0,0.00011632,2]
[352194900,1738990231785,-2090.41094779,0.00011632,2]
[352194901,1738990231810,-624.0,0.00011632,2]
[352194902,1738990231822,-315.0,0.00011632,2]
[352194903,1738990231835,-252.5,0.00011632,2]
[352194904,1738990231847,-742.08905221,0.00011632,2]
[352194905,1738990231859,-3912.0,0.00011632,2]
[352194906,1738990231870,-150.0,0.00011632,2]
[352194907,1738990231879,-483.926,0.00011632,2]
[352194908,1738990231890,-300.0,0.00011644,2]
[352194909,1738990231899,-1007.0,0.000117,2]
[352194910,1738990231908,-931.41,0.00011781,2]
[352194911,1738990231917,-500.0,0.000118,2]
[352194913,1738990231925,-500.0,0.000118,2]
[352194914,1738990231935,-500.0,0.000118,2]
[352194915,1738990231943,-500.0,0.000118,2]
[352194916,1738990231953,-500.0,0.000118,2]
[352194917,1738990231962,-500.0,0.000118,2]
[352194918,1738990231971,-500.0,0.000118,2]
[352194919,1738990231981,-500.0,0.000118,2]
[352194921,1738990231990,-500.0,0.000118,2]
[352194923,1738990231999,-500.0,0.000118,2]
[352194925,1738990232008,-126.11422317,0.000118,2]
[352194929,1738990232036,-373.88577683,0.000118,2]
[352194931,1738990232045,-20.84905083,0.000118,2]
[352194933,1738990232057,-479.15094917,0.000118,2]
[352194935,1738990232066,-500.0,0.000118,2]
[352194937,1738990232075,-500.0,0.000118,2]
[352194939,1738990232084,-500.0,0.000118,2]
[352194941,1738990232093,-500.0,0.000118,2]
[352194943,1738990232101,-500.0,0.000118,2]
[352194945,1738990232111,-500.0,0.000118,2]
[352194947,1738990232119,-500.0,0.000118,2]
[352194949,1738990232128,-500.0,0.000118,2]
[352194952,1738990232137,-500.0,0.000118,2]
[352194954,1738990232146,-500.0,0.000118,2]
[352194956,1738990232155,-500.0,0.000118,2]
[352194957,1738990232164,-500.0,0.000118,2]
[352194959,1738990232173,-223.75197952,0.000118,2]
[352194962,1738990232184,-276.24802048,0.000118,2]
[352194964,1738990232193,-227.22554542,0.000118,2]
[352194977,1738990232307,-272.77445458,0.000118,2]
[352194979,1738990232316,-500.0,0.000118,2]
[352194981,1738990232324,-500.0,0.000118,2]
[352194983,1738990232333,-500.0,0.000118,2]
[352194985,1738990232342,-500.0,0.000118,2]
[352194987,1738990232356,-500.0,0.000118,2]
[352194988,1738990232368,-500.0,0.000118,2]
[352194989,1738990232377,-500.0,0.000118,2]
[352194990,1738990232387,-500.0,0.000118,2]
[352194991,1738990232397,-500.0,0.000118,2]
[352194992,1738990232406,-500.0,0.000118,2]
[352194993,1738990232416,-500.0,0.000118,2]
[352194994,1738990232425,-500.0,0.000118,2]
[352194995,1738990232434,-65.82554546,0.000118,2]
[352194996,1738990232445,-434.17445454,0.000118,2]
[352194997,1738990232455,-500.0,0.000118,2]
[352194998,1738990232465,-500.0,0.000118,2]
[352194999,1738990232474,-500.0,0.000118,2]
[352195000,1738990232483,-500.0,0.000118,2]
[352195001,1738990232492,-500.0,0.000118,2]
[352195002,1738990232502,-500.0,0.000118,2]
[352195003,1738990232516,-500.0,0.000118,2]
[352195004,1738990232525,-500.0,0.000118,2]
[352195005,1738990232534,-500.0,0.000118,2]
[352195006,1738990232542,-67.38764102,0.000118,2]
[352195007,1738990232555,-432.61235898,0.000118,2]
[352195008,1738990232563,-500.0,0.000118,2]
[352195009,1738990232573,-500.0,0.000118,2]
[352195010,1738990232584,-500.0,0.000118,2]
[352195011,1738990232593,-500.0,0.000118,2]
[352195012,1738990232601,-500.0,0.000118,2]
[352195013,1738990232611,-500.0,0.000118,2]
[352195014,1738990232620,-500.0,0.000118,2]
[352195015,1738990232629,-500.0,0.000118,2]
[352195016,1738990232638,-500.0,0.000118,2]
[352195017,1738990232647,-500.0,0.000118,2]
[352195018,1738990232660,-500.0,0.000118,2]
[352195019,1738990232670,-500.0,0.000118,2]
[352195020,1738990232679,-511.0,0.000118,2]
[352195021,1738990232688,-500.0,0.000118,2]
[352195022,1738990232697,-500.0,0.000118,2]
[352195023,1738990232706,-500.0,0.000118,2]
[352195024,1738990232715,-500.0,0.000118,2]
[352195025,1738990232724,-500.0,0.000118,2]
[352195026,1738990232734,-500.0,0.000118,2]
[352195027,1738990232743,-500.0,0.000118,2]
[352195028,1738990232752,-500.0,0.000118,2]
[352195029,1738990232761,-500.0,0.000118,2]
[352195030,1738990233027,-200.925865,0.000118,2]
[352195031,1738990233040,-299.074135,0.000118,2]
[352195032,1738990233049,-500.0,0.000118,2]
[352195033,1738990233059,-500.0,0.000118,2]
[352195034,1738990233069,-500.0,0.000118,2]
[352195035,1738990233079,-500.0,0.000118,2]
[352195036,1738990233088,-500.0,0.000118,2]
[352195037,1738990233098,-500.0,0.000118,2]
[352195038,1738990233108,-500.0,0.000118,2]
[352195039,1738990233117,-500.0,0.000118,2]
[352195040,1738990233127,-500.0,0.000118,2]
[352195041,1738990233137,-500.0,0.000118,2]
[352195042,1738990233147,-500.0,0.000118,2]
[352195043,1738990233156,-500.0,0.000118,2]
[352195044,1738990233167,-500.0,0.000118,2]
[352195045,1738990233177,-500.0,0.000118,2]
[352195046,1738990233186,-500.0,0.000118,2]
[352195047,1738990233195,-500.0,0.000118,2]
[352195048,1738990233205,-500.0,0.000118,2]
[352195049,1738990233215,-500.0,0.000118,2]
[352195050,1738990233225,-500.0,0.000118,2]
[352195051,1738990233235,-500.0,0.000118,2]
[352195052,1738990233244,-500.0,0.000118,2]
[352195053,1738990233254,-500.0,0.000118,2]
[352195054,1738990233263,-500.0,0.000118,2]
[352195055,1738990233273,-500.0,0.000118,2]
[352195056,1738990233282,-500.0,0.000118,2]
[352195057,1738990233292,-500.0,0.000118,2]
[352195058,1738990233301,-500.0,0.000118,2]
[352195059,1738990233311,-500.0,0.000118,2]
[352195060,1738990233320,-500.0,0.000118,2]
[352195061,1738990233328,-500.0,0.000118,2]
[352195062,1738990233338,-500.0,0.000118,2]
[352195063,1738990233347,-500.0,0.000118,2]
[352195064,1738990233356,-500.0,0.000118,2]
[352195065,1738990233366,-500.0,0.000118,2]
[352195066,1738990233376,-500.0,0.000118,2]
[352195067,1738990233385,-500.0,0.000118,2]
[352195068,1738990233395,-500.0,0.000118,2]
[352195069,1738990233404,-500.0,0.000118,2]
[352195070,1738990233415,-500.0,0.000118,2]
[352195071,1738990233424,-500.0,0.000118,2]